fUST/lending_fUST_20241215
["ID","MTS","AMOUNT","RATE_DAILY","PERIOD"]
[345363205,1734193849114,-2885.37,0.0002849,7]
[345363206,1734193849124,-500.0,0.0002849,7]
[345363207,1734193849134,-500.0,0.00028493,7]
[345363208,1734193849144,-557.3350257,0.00028499,2]
[345363209,1734193849154,-196.31372764,0.00028499,2]
[345363210,1734193849163,-163.48412232,0.00028499,2]
[345363211,1734193849173,-500.0,0.00028499,7]
[345363212,1734193849182,-500.0,0.00028499,7]
[345363213,1734193849191,-500.0,0.00028499,7]
[345363214,1734193849201,-500.0,0.00028499,7]
[345363215,1734193849210,-644.26361069,0.00028499,7]
[345363216,1734193849219,-686088.52487328,0.000285,2]
[345363217,1734193849229,-166618.82625981,0.000285,2]
[345363218,1734193849239,-7423.36517074,0.000285,2]
[345363219,1734193849248,-14835.0,0.000285,2]
[345363220,1734193849257,-500.0,0.000285,2]
[345363221,1734193849267,-500.0,0.000285,2]
[345363222,1734193849276,-500.0,0.000285,2]
[345363223,1734193849286,-500.0,0.000285,2]
[345363224,1734193849296,-500.0,0.000285,2]
[345363225,1734193849306,-500.0,0.000285,2]
[345363226,1734193849316,-500.0,0.000285,2]
[345363227,1734193849325,-156.61274621,0.000285,2]
[345363228,1734193849339,-500.0,0.000285,2]
[345363229,1734193849348,-403.98399757,0.000285,2]
[345363230,1734193849358,-3000.0,0.000285,2]
[345363231,1734193849368,-2815.05251196,0.000285,3]
[345363232,1734193849377,-646.28,0.000285,2]
[345363233,1734193849387,-500.0,0.000285,10]
[345363234,1734193849397,-42758.26006315,0.000285,2]
[345363235,1734193849457,-535.84346821,0.000285,2]
[345363236,1734193849495,-26756.26693805,0.000285,2]
[345363237,1734193849505,-420.0,0.00028599,2]
[345363238,1734193849515,-635.1253556,0.00028647,2]
[345363239,1734193849524,-160.22278501,0.00028685,2]
[345363240,1734193849534,-500.0,0.0002869,2]
[345363241,1734193849543,-750.62,0.0002875,7]
[345363242,1734193849553,-500.0,0.0002875,5]
[345363243,1734193849562,-500.0,0.00028763,7]
[345363244,1734193849572,-500.0,0.00028763,7]
[345363245,1734193849587,-1534.52,0.00028764,7]
[345363246,1734193849597,-764.89,0.00028764,7]
[345363247,1734193849606,-2885.37,0.00028764,7]
[345363248,1734193849615,-500.0,0.00028767,7]
[345363249,1734193849625,-519.03623925,0.00028789,5]
[345363250,1734193849634,-252.85516669,0.000288,2]
[345363251,1734193849644,-500.0,0.00028821,5]
[345363252,1734193849654,-553.74086493,0.00028821,5]
[345363253,1734193849663,-500.0,0.00028821,5]
[345363254,1734193849673,-500.0,0.00028821,5]
[345363255,1734193849682,-1000.0,0.00029,29]
[345363256,1734193849692,-303.16369506,0.00029,2]
[345363257,1734193849702,-635.1253556,0.00029007,2]
[345363258,1734193849711,-750.62,0.00029024,7]
[345363259,1734193849720,-500.0,0.00029024,5]
[345363260,1734193849729,-500.0,0.00029037,7]
[345363261,1734193849738,-500.0,0.00029037,7]
[345363262,1734193849748,-1534.52,0.00029038,7]
[345363263,1734193849757,-764.89,0.00029038,7]
[345363264,1734193849766,-2885.37,0.00029038,7]
[345363265,1734193849775,-500.0,0.00029041,7]
[345363266,1734193849785,-170.614177,0.00029044,2]
[345363267,1734193849794,-500.0,0.0002919,2]
[345363268,1734193849803,-303.16369506,0.0002929,2]
[345363269,1734193849813,-750.62,0.00029298,7]
[345363270,1734193849822,-500.0,0.00029298,5]
[345363271,1734193849835,-500.0,0.00029311,7]
[345363272,1734193849845,-500.0,0.00029311,7]
[345363273,1734193849854,-1534.52,0.00029312,7]
[345363274,1734193849863,-764.89,0.00029312,7]
[345363275,1734193849873,-2885.37,0.00029312,7]
[345363276,1734193849882,-500.0,0.00029315,7]
[345363277,1734193849892,-635.1253556,0.00029367,2]
[345363278,1734193849901,-1000.000001,0.000295,3]
[345363279,1734193849910,-750.62,0.00029572,7]
[345363280,1734193849919,-500.0,0.00029572,5]
[345363281,1734193849929,-303.16369506,0.0002958,2]
[345363282,1734193849938,-500.0,0.00029585,7]
[345363283,1734193849947,-500.0,0.00029585,7]
[345363284,1734193849956,-1534.52,0.00029586,7]
[345363285,1734193849965,-764.89,0.00029586,7]
[345363286,1734193849977,-2885.37,0.00029586,7]
[345363287,1734193849987,-560.89929242,0.00029589,7]
[345363288,1734193849996,-500.0,0.00029635,9]
[345363289,1734193850005,-724.756726,0.0002969,2]
[345363290,1734193850015,-635.1253556,0.00029726,2]
[345363291,1734193850024,-37625.62873858,0.0002975,3]
[345363292,1734193850039,-133.77126142,0.0002975,3]
[345363293,1734193850051,-170.614177,0.0002975,2]
[345363294,1734193850060,-500.0,0.00029773,5]
[345363295,1734193850070,-500.0,0.00029773,5]
[345363296,1734193850083,-279.47861236,0.00029838,2]
[345363297,1734193850093,-750.62,0.00029846,7]
[345363298,1734193850102,-500.0,0.00029846,5]
[345363299,1734193850112,-500.0,0.00029859,7]
[345363300,1734193850122,-500.0,0.00029859,7]
[345363301,1734193850132,-1534.52,0.0002986,7]
[345363302,1734193850141,-764.89,0.0002986,7]
[345363303,1734193850151,-2885.37,0.0002986,7]
[345363304,1734193850160,-369.96266544,0.0002987,2]
[345363305,1734193850170,-160.0,0.00029943,3]
[345363306,1734193850179,-250.0,0.0003,120]
[345363307,1734193850188,-1704.29076717,0.0003,7]
[345363308,1734193850198,-95467.22057,0.0003,2]
[345363309,1734193850209,-1000.0,0.0003,120]
[345363310,1734193850219,-178.2435,0.0003,2]
[345363311,1734193850228,-503.817464,0.0003,32]
[345363312,1734193850238,-3491.55649481,0.0003,30]
[345363313,1734193850247,-413.92048907,0.0003,10]
[345363314,1734193850257,-182.289,0.0003,2]
[345363315,1734193850267,-247.0,0.0003,2]
[345363316,1734193850276,-6403.98652629,0.00030048,7]
[345363317,1734193850286,-635.1253556,0.00030086,2]
[345363318,1734193850295,-750.62,0.0003012,7]
[345363319,1734193850305,-500.0,0.0003012,5]
[345363320,1734193850314,-500.0,0.00030133,7]
[345363321,1734193850324,-500.0,0.00030133,7]
[345363322,1734193850337,-1534.52,0.00030134,7]
[345363323,1734193850346,-764.89,0.00030134,7]
[345363324,1734193850355,-2885.37,0.00030134,7]
[345363325,1734193850365,-540.80631932,0.00030136,120]
[345363326,1734193850374,-99900.0,0.00030185,2]
[345363327,1734193850384,-172747.01780732,0.00030186,10]
[345363332,1734193980907,165.302393,0.00013973,2]
[345363363,1734194870525,165.302393,0.00013973,2]
[345363452,1734195038680,-165.302393,0.00023435,2]
[345363453,1734195038691,-2826.50931275,0.000249,2]
[345363454,1734195038703,-2826.50931273,0.00024932,2]
[345363455,1734195038713,-2826.50931273,0.00024964,2]
[345363456,1734195038722,-2826.50931273,0.00024996,2]
[345363457,1734195038731,-150.1,0.00025,2]
[345363458,1734195038740,-2826.50931273,0.00025028,2]
[345363459,1734195038749,-2826.50931273,0.0002506,2]
[345363460,1734195038759,-157.62,0.0002599,2]
[345363462,1734195038768,-1443.93915033,0.00025999,2]
[345363463,1734195038777,-170.883,0.00025999,12]
[345363464,1734195038787,-300.0,0.00025999,2]
[345363466,1734195038796,-300.0,0.00025999,2]
[345363468,1734195038805,-14196.75794876,0.00026,4]
[345366496,1734195069608,350.746,0.00020449,2]
[345367605,1734195605027,229.45,0.000255,120]
[345367607,1734195831279,165.259283,0.00013973,2]
[345367637,1734196232606,-165.259283,0.00024224,2]
[345367639,1734196232615,-1185.20225891,0.00025176,2]
[345368039,1734196246644,-1704.00323048,0.00025176,2]
[345368236,1734196912413,165.365517,0.00013973,2]
[345368338,1734197432099,-165.365517,0.00023435,2]
[345368339,1734197432109,-142.864845,0.000236,2]
[345368340,1734197432120,-802.0749284,0.000236,2]
[345368341,1734197432129,-48.83302096,0.00023622,2]
[345368628,1734197441490,17924.0,0.000255,120]
[345368687,1734197442896,-261.37567374,0.00023622,2]
[345368689,1734197442906,-300.0,0.00023699,2]
[345368691,1734197442915,-300.0,0.00023699,2]
[345368693,1734197442924,-10998.62433237,0.000237,2]
[345368751,1734197445775,-20278.9537862,0.000237,2]
[345368924,1734197798923,162.12832,0.00013973,2]
[345368951,1734198632070,-300.0,0.00022647,2]
[345368952,1734198632080,-300.0,0.00022647,2]
[345368953,1734198632089,-3338.24590067,0.00022648,2]
[345368954,1734198632128,-13620.80997573,0.00022648,2]
[345368955,1734198632140,-195.76811888,0.00022659,2]
[345368956,1734198632149,-16877.6633698,0.00022749,2]
[345368957,1734198632159,-162.12832,0.00022759,2]
[345368958,1734198632168,-9663.84332601,0.00023152,2]
[345368959,1734198632177,-151.0,0.00023439,7]
[345368960,1734198632187,-9663.84332601,0.00023454,2]
[345368961,1734198632196,-270.093589,0.00023454,7]
[345368962,1734198632206,-1029.01087139,0.00023538,2]
[345368963,1734198632215,-157.62,0.00023638,2]
[345368964,1734198632225,-500.0,0.00023647,2]
[345368965,1734198632233,-500.0,0.00023647,2]
[345368966,1734198632242,-500.0,0.00023647,2]
[345368967,1734198632255,-500.0,0.00023647,2]
[345368968,1734198632264,-500.0,0.00023647,2]
[345368969,1734198632272,-500.0,0.00023647,2]
[345368970,1734198632282,-355.47016354,0.00023647,2]
[345368971,1734198632290,-1443.93915033,0.00023647,2]
[345368972,1734198632299,-40522.93401864,0.00023647,2]
[345368973,1734198632308,-180.1694486,0.00023647,2]
[345368974,1734198632317,-15544.4796843,0.00023648,2]
[345368975,1734198632327,-292.387826,0.00023648,7]
[345368976,1734198632335,-151.0,0.00023648,7]
[345368977,1734198632344,-151.0,0.00023648,7]
[345368978,1734198632353,-195.901672,0.00023648,7]
[345368979,1734198632363,-195.901672,0.00023648,7]
[345368980,1734198632372,-8777.3446823,0.00024379,2]
[345368981,1734198632380,-151.0,0.00024379,7]
[345368982,1734198632389,-151.0,0.00024379,7]
[345368983,1734198632399,-183.529943,0.00024379,7]
[345368984,1734198632408,-195.901672,0.00024379,7]
[345368985,1734198632418,-195.901672,0.00024379,7]
[345368986,1734198632427,-195.901672,0.00024379,7]
[345368987,1734198632436,-195.901672,0.00024379,7]
[345368988,1734198632446,-1029.01087132,0.00024474,2]
[345368989,1734198632455,-420.0,0.00024593,2]
[345368990,1734198632465,-200.0,0.00024657,7]
[345368991,1734198632474,-200.0,0.00024658,15]
[345368992,1734198632483,-170.799,0.00024753,8]
[345368993,1734198632493,-420.0,0.00024912,2]
[345368994,1734198632505,-563.03,0.00025,30]
[345368995,1734198632514,-151.0,0.00025022,7]
[345368996,1734198632523,-300.365293,0.00025203,7]
[345368997,1734198632532,-215.9,0.00025204,4]
[345368998,1734198632541,-215.9,0.00025204,7]
[345368999,1734198632551,-195.901672,0.00025267,7]
[345369000,1734198632560,-195.901672,0.00025267,7]
[345369001,1734198632569,-1029.01087132,0.00025409,2]
[345369002,1734198632579,-251.00165831,0.000255,2]
[345369003,1734198632588,-170.0,0.0002552,4]
[345369004,1734198632597,-170.105896,0.00025919,2]
[345369005,1734198632607,-350.0,0.00025999,2]
[345369006,1734198632618,-5803.21205124,0.00026,4]
[345369007,1734198632628,-708.72129263,0.00026,5]
[345369008,1734198632637,-240.765344,0.00026,7]
[345369009,1734198632646,-195.901672,0.00026,7]
[345369010,1734198632656,-195.901672,0.00026,7]
[345369011,1734198632665,-1029.01087132,0.00026345,2]
[345369012,1734198632675,-587.0,0.00026707,2]
[345369013,1734198632684,-170.105896,0.00026888,2]
[345369014,1734198632693,-195.901672,0.00027196,7]
[345369015,1734198632702,-195.901672,0.00027196,7]
[345369016,1734198632712,-1029.01087132,0.00027281,2]
[345369017,1734198632722,-500.0,0.00027397,7]
[345369018,1734198632732,-500.0,0.00027397,7]
[345369019,1734198632741,-947.24,0.00027397,7]
[345369020,1734198632755,-500.0,0.00027397,7]
[345369021,1734198632764,-464.09007598,0.00027397,7]
[345369022,1734198632773,-500.0,0.00027397,7]
[345369023,1734198632783,-500.0,0.00027397,5]
[345369024,1734198632793,-500.0,0.00027397,7]
[345369025,1734198632802,-500.0,0.00027397,7]
[345369026,1734198632812,-195.901672,0.00027397,7]
[345369027,1734198632821,-195.901672,0.00027397,7]
[345369028,1734198632831,-195.901672,0.00027397,7]
[345369029,1734198632840,-195.901672,0.00027397,7]
[345369030,1734198632850,-1719.85,0.00027397,7]
[345369031,1734198632859,-500.0,0.00027397,7]
[345369032,1734198632868,-587.0,0.00027403,2]
[345369033,1734198632878,-500.0,0.00027671,7]
[345369034,1734198632888,-947.24,0.00027671,7]
[345369035,1734198632898,-509.17876605,0.00027671,7]
[345369036,1734198632907,-500.0,0.00027671,5]
[345369037,1734198632917,-500.0,0.00027671,7]
[345369038,1734198632926,-500.0,0.00027671,7]
[345369039,1734198632945,-195.901672,0.00027671,7]
[345369040,1734198632956,-195.901672,0.00027671,7]
[345369041,1734198632966,-1719.85,0.00027671,7]
[345369042,1734198632976,-500.0,0.00027671,7]
[345369043,1734198632986,-676.77655496,0.00027845,2]
[345369044,1734198632996,-195.901672,0.00027845,7]
[345369045,1734198633011,-195.901682,0.00027845,7]
[345369046,1734198633021,-170.105896,0.00027857,2]
[345369047,1734198633030,-500.0,0.00027945,7]
[345369048,1734198633042,-947.24,0.00027945,7]
[345369049,1734198633052,-500.0,0.00027945,5]
[345369050,1734198633062,-500.0,0.00027945,7]
[345369051,1734198633073,-340.60250939,0.00027945,7]
[345369052,1734198633083,-1719.85,0.00027945,7]
[345369053,1734198633093,-500.0,0.00027945,7]
[345369054,1734198633103,-1029.01087132,0.00028217,2]
[345369055,1734198633114,-500.0,0.00028218,2]
[345369056,1734198633124,-500.0,0.00028218,2]
[345369057,1734198633135,-500.0,0.00028218,2]
[345369058,1734198633148,-500.0,0.00028218,2]
[345369059,1734198633158,-500.0,0.00028218,2]
[345369060,1734198633168,-500.0,0.00028218,2]
[345369061,1734198633179,-500.0,0.00028218,2]
[345369062,1734198633189,-500.0,0.00028218,2]
[345369063,1734198633199,-500.0,0.00028218,2]
[345369064,1734198633210,-500.0,0.00028218,2]
[345369065,1734198633220,-500.0,0.00028218,2]
[345369066,1734198633231,-500.0,0.00028218,2]
[345369067,1734198633242,-500.0,0.00028218,2]
[345369068,1734198633256,-500.0,0.00028218,2]
[345369069,1734198633266,-19.69062556,0.00028218,2]
[345369070,1734198633282,-480.30937444,0.00028218,2]
[345369071,1734198633292,-389.45232039,0.00028218,2]
[345369072,1734198633302,-45.21278501,0.00028218,2]
[345369104,1734198638015,-303.47530393,0.00028218,2]
[345369123,1734198638174,-151.31191106,0.00028218,2]
[345369126,1734198638184,-500.0,0.00028218,2]
[345369130,1734198638194,-500.0,0.00028218,2]
[345369132,1734198638203,-500.0,0.00028218,2]
[345369134,1734198638212,-500.0,0.00028218,2]
[345369137,1734198638222,-39.28808894,0.00028218,2]
[345369325,1734198640093,-460.71191106,0.00028218,2]
[345369327,1734198640103,-500.0,0.00028218,2]
[345369329,1734198640112,-358.52703374,0.00028218,2]
[345369331,1734198640121,-500.0,0.00028218,2]
[345369333,1734198640131,-500.0,0.00028218,2]
[345369335,1734198640141,-500.0,0.00028218,2]
[345369337,1734198640154,-500.0,0.00028218,2]
[345369339,1734198640163,-500.0,0.00028218,2]
[345369341,1734198640173,-500.0,0.00028218,2]
[345369343,1734198640182,-500.0,0.00028218,2]
[345369345,1734198640191,-500.0,0.00028218,2]
[345369347,1734198640200,-500.0,0.00028218,2]
[345369350,1734198640210,-500.0,0.00028218,2]
[345369352,1734198640219,-500.0,0.00028218,2]
[345369354,1734198640228,-500.0,0.00028218,2]
[345369356,1734198640238,-500.0,0.00028218,2]
[345369358,1734198640247,-500.0,0.00028218,2]
[345369360,1734198640260,-500.0,0.00028218,2]
[345369362,1734198640269,-500.0,0.00028218,2]
[345369364,1734198640278,-500.0,0.00028218,2]
[345369366,1734198640288,-500.0,0.00028218,2]
[345369368,1734198640297,-500.0,0.00028218,2]
[345369370,1734198640305,-500.0,0.00028218,2]
[345369371,1734198640314,-500.0,0.00028218,2]
[345369373,1734198640323,-500.0,0.00028218,2]
[345369376,1734198640333,-500.0,0.00028218,2]
[345369378,1734198640343,-500.0,0.00028218,2]
[345369380,1734198640353,-500.0,0.00028218,2]
[345369382,1734198640362,-500.0,0.00028218,2]
[345369384,1734198640372,-500.0,0.00028218,2]
[345369386,1734198640382,-500.0,0.00028218,2]
[345369388,1734198640392,-306.15419084,0.00028218,2]
[345369390,1734198640401,-500.0,0.00028218,2]
[345369392,1734198640411,-500.0,0.00028218,2]
[345369394,1734198640420,-500.0,0.00028218,2]
[345369396,1734198640429,-500.0,0.00028218,2]
[345369398,1734198640438,-290.7595987,0.00028218,2]
[345371672,1734198981080,167.234706,0.00013973,2]
[345371738,1734199832220,-167.234706,0.00022174,2]
[345371740,1734199832231,-195.76811888,0.00022559,2]
[345371742,1734199832241,-4765.97818282,0.00025215,2]
[345371752,1734199832325,-10582.01983456,0.00025215,2]
[345371754,1734199832342,-3458.76017412,0.00025215,2]
[345371756,1734199832352,-3257.96260055,0.00025556,5]
[345371758,1734199832361,-300.0,0.00025619,2]
[345371760,1734199832371,-300.0,0.00025619,2]
[345371762,1734199832381,-10317.3742841,0.0002562,2]
[345371764,1734199832390,-201.5906806,0.00025739,2]
[345371767,1734199832400,-160.0,0.0002581,2]
[345371768,1734199832410,-987.7284508,0.00025816,2]
[345371771,1734199832420,-380.414,0.0002681,2]
[345371773,1734199832430,-172.013,0.00026984,15]
[345371775,1734199832439,-611.08271471,0.00027053,2]
[345371777,1734199832448,-250.0,0.00027154,2]
[345371778,1734199832458,-541.42124396,0.00027297,2]
[345371780,1734199832469,-188.25096624,0.00027297,2]
[345371782,1734199832478,-500.0,0.00027373,2]
[345371783,1734199832487,-500.0,0.00027397,7]
[345371785,1734199832496,-500.0,0.00027397,7]
[345371787,1734199832506,-1504.87,0.00027397,7]
[345371789,1734199832515,-500.0,0.00027397,7]
[345371791,1734199832525,-500.0,0.00027397,7]
[345371794,1734199832535,-500.0,0.00027397,7]
[345371795,1734199832547,-500.0,0.00027397,7]
[345371797,1734199832560,-500.0,0.00027397,7]
[345371800,1734199832570,-570.3295091,0.00027397,7]
[345371801,1734199832579,-500.0,0.00027397,7]
[345371804,1734199832589,-536.72,0.00027397,7]
[345371806,1734199832599,-614.81438404,0.00027397,7]
[345371808,1734199832608,-500.0,0.00027397,7]
[345371809,1734199832617,-500.0,0.00027397,7]
[345371811,1734199832627,-513.11,0.00027397,7]
[345371813,1734199832636,-502.9960538,0.00027397,7]
[345371815,1734199832648,-500.0,0.00027397,7]
[345371817,1734199832657,-583.68258361,0.00027397,7]
[345371819,1734199832667,-500.0,0.00027397,7]
[345371821,1734199832676,-500.0,0.00027397,7]
[345371823,1734199832685,-502.50112859,0.00027397,7]
[345371825,1734199832695,-500.0,0.00027397,7]
[345371827,1734199832705,-500.0,0.00027397,7]
[345371829,1734199832714,-502.43949287,0.00027397,7]
[345371832,1734199832723,-828.84,0.00027397,7]
[345371834,1734199832733,-509.31273811,0.00027397,7]
[345371836,1734199832744,-503.3956646,0.00027397,7]
[345371838,1734199832753,-506.17394552,0.00027397,7]
[345371840,1734199832763,-500.0,0.00027397,7]
[345371842,1734199832772,-502.45929117,0.00027397,7]
[345371844,1734199832781,-580.55,0.00027397,7]
[345371846,1734199832791,-502.93321039,0.00027397,7]
[345371848,1734199832806,-500.0,0.00027397,7]
[345371850,1734199832815,-502.75540304,0.00027397,7]
[345371852,1734199832824,-500.0,0.00027397,7]
[345371854,1734199832834,-525.25256499,0.00027397,7]
[345371856,1734199832843,-500.0,0.00027397,7]
[345371858,1734199832852,-500.0,0.00027397,7]
[345371860,1734199832861,-504.16457776,0.00027397,7]
[345371862,1734199832870,-500.0,0.00027397,7]
[345371864,1734199832880,-500.0,0.00027397,7]
[345371866,1734199832889,-503.5781621,0.00027397,7]
[345371868,1734199832898,-568.02470503,0.00027397,7]
[345371870,1734199832907,-503.16240314,0.00027397,7]
[345371872,1734199832916,-505.74936409,0.00027397,7]
[345371874,1734199832925,-501.98971773,0.00027397,7]
[345371876,1734199832935,-615.85723089,0.00027397,7]
[345371878,1734199832944,-502.98797809,0.00027397,7]
[345371880,1734199832953,-500.0,0.00027397,7]
[345371882,1734199832962,-500.0,0.00027397,7]
[345371884,1734199832971,-502.31403144,0.00027397,7]
[345371886,1734199832981,-500.0,0.00027397,7]
[345371888,1734199832990,-503.05250913,0.00027397,7]
[345371890,1734199832999,-591.21739254,0.00027397,7]
[345371892,1734199833009,-502.68153873,0.00027397,7]
[345371894,1734199833019,-505.05680595,0.00027397,7]
[345371896,1734199833028,-500.0,0.00027397,7]
[345371898,1734199833038,-502.52919245,0.00027397,7]
[345371900,1734199833055,-500.0,0.00027397,7]
[345371902,1734199833065,-502.99556916,0.00027397,7]
[345371904,1734199833074,-500.0,0.00027397,7]
[345371906,1734199833084,-500.0,0.00027397,7]
[345371908,1734199833093,-500.0,0.00027397,7]
[345371910,1734199833103,-504.25472063,0.00027397,7]
[345371912,1734199833114,-510.42812851,0.00027397,7]
[345371914,1734199833123,-600.25360719,0.00027397,7]
[345371916,1734199833133,-504.36476859,0.00027397,7]
[345371918,1734199833142,-500.0,0.00027397,7]
[345371920,1734199833152,-500.0,0.00027397,7]
[345371922,1734199833162,-500.0,0.00027397,7]
[345371923,1734199833172,-503.59499929,0.00027397,7]
[345371926,1734199833183,-502.88672565,0.00027397,7]
[345371928,1734199833192,-500.0,0.00027397,7]
[345371930,1734199833202,-500.0,0.00027397,7]
[345371931,1734199833211,-500.0,0.00027397,7]
[345371933,1734199833221,-500.0,0.00027397,7]
[345371935,1734199833230,-500.0,0.00027397,7]
[345371937,1734199833240,-503.75654575,0.00027397,7]
[345371939,1734199833250,-551.25,0.00027397,7]
[345371942,1734199833259,-555.96,0.00027397,7]
[345371943,1734199833269,-500.0,0.00027397,7]
[345371945,1734199833278,-500.0,0.00027397,7]
[345371947,1734199833288,-500.0,0.00027397,7]
[345371949,1734199833306,-500.0,0.00027397,7]
[345371952,1734199833316,-500.0,0.00027397,7]
[345371953,1734199833325,-500.0,0.00027397,7]
[345371956,1734199833335,-504.74,0.00027397,7]
[345371957,1734199833344,-500.0,0.00027397,7]
[345371959,1734199833354,-504.29,0.00027397,7]
[345371961,1734199833364,-500.0,0.00027397,7]
[345371963,1734199833374,-500.0,0.00027397,7]
[345371965,1734199833384,-500.0,0.00027397,7]
[345371967,1734199833394,-506.10206446,0.00027397,7]
[345371969,1734199833403,-500.0,0.00027397,7]
[345371971,1734199833413,-500.0,0.00027397,7]
[345371973,1734199833423,-500.0,0.00027397,7]
[345371976,1734199833433,-500.0,0.00027397,7]
[345371978,1734199833442,-500.0,0.00027397,7]
[345371980,1734199833452,-500.0,0.00027397,7]
[345371982,1734199833463,-500.0,0.00027397,7]
[345371984,1734199833472,-500.0,0.00027397,7]
[345371986,1734199833482,-500.0,0.00027397,7]
[345371988,1734199833491,-500.0,0.00027397,7]
[345371990,1734199833500,-500.0,0.00027397,7]
[345371992,1734199833509,-500.0,0.00027397,7]
[345371994,1734199833519,-500.0,0.00027397,7]
[345371996,1734199833528,-500.0,0.00027397,7]
[345371998,1734199833537,-500.0,0.00027397,7]
[345372000,1734199833556,-500.0,0.00027397,7]
[345372002,1734199833566,-500.0,0.00027397,7]
[345372004,1734199833575,-500.0,0.00027397,7]
[345372006,1734199833584,-500.0,0.00027397,7]
[345372008,1734199833594,-500.0,0.00027397,7]
[345372010,1734199833605,-500.0,0.00027397,7]
[345372024,1734199833721,-500.0,0.00027397,7]
[345372026,1734199833731,-500.0,0.00027397,7]
[345372028,1734199833740,-500.0,0.00027397,7]
[345372030,1734199833750,-500.0,0.00027397,7]
[345372032,1734199833759,-500.0,0.00027397,7]
[345372034,1734199833768,-500.0,0.00027397,7]
[345372036,1734199833778,-500.0,0.00027397,7]
[345372038,1734199833787,-500.0,0.00027397,7]
[345372040,1734199833802,-500.0,0.00027397,7]
[345372042,1734199833811,-500.0,0.00027397,7]
[345372044,1734199833821,-500.0,0.00027397,7]
[345372046,1734199833832,-531.39873476,0.00027397,7]
[345372048,1734199833842,-500.0,0.00027397,7]
[345372050,1734199833851,-500.0,0.00027397,7]
[345372052,1734199833860,-500.0,0.00027397,7]
[345372054,1734199833870,-500.0,0.00027397,7]
[345372056,1734199833879,-500.0,0.00027397,7]
[345372058,1734199833891,-500.0,0.00027397,7]
[345372060,1734199833900,-500.0,0.00027397,7]
[345372062,1734199833910,-500.0,0.00027397,7]
[345372064,1734199833920,-500.0,0.00027397,7]
[345372066,1734199833929,-500.0,0.00027397,7]
[345372068,1734199833939,-500.0,0.00027397,7]
[345372070,1734199833948,-500.0,0.00027397,7]
[345372072,1734199833958,-3953.07,0.00027397,7]
[345372074,1734199833967,-500.0,0.00027397,7]
[345372076,1734199833977,-500.0,0.00027397,7]
[345372078,1734199833986,-500.0,0.00027397,7]
[345372080,1734199833996,-500.0,0.00027397,7]
[345372082,1734199834005,-500.0,0.00027397,7]
[345372084,1734199834015,-500.0,0.00027397,7]
[345372086,1734199834024,-500.0,0.00027397,7]
[345372088,1734199834033,-500.0,0.00027397,7]
[345372090,1734199834047,-500.0,0.00027397,7]
[345372092,1734199834058,-504.29823303,0.00027397,7]
[345372094,1734199834067,-500.0,0.00027397,7]
[345372096,1734199834076,-500.0,0.00027397,7]
[345372098,1734199834086,-500.0,0.00027397,7]
[345372100,1734199834096,-500.0,0.00027397,7]
[345372102,1734199834105,-500.0,0.00027397,7]
[345372104,1734199834114,-500.0,0.00027397,7]
[345372106,1734199834124,-500.0,0.00027397,7]
[345372108,1734199834134,-500.0,0.00027397,7]